[Event "45th FIDE Womens Olympiad 2024"]
[Site "Budapest"]
[Date "2024.09.16"]
[Round "6.116"]
[White "Felicidade, Felicia"]
[Black "Sibajeva, Marija"]
[Result "0-1"]
[ECO "B41"]
[WhiteElo "1743"]
[BlackElo "2007"]
[Annotator "NA"]
[PlyCount "78"]
[EventDate "2024.09.05"]
[EventType "team-tourn"]
[EventCountry "HUN"]
[SourceTitle "playchess.com"]
[Source "ChessBase"]
[SourceQuality "1"]
[WhiteTeam "Angola"]
[BlackTeam "Lithuania"]
[WhiteTeamCountry "ANG"]
[BlackTeamCountry "LTU"]
[TimeControl "40/5400+30:1800+30"]

1. e4 c5 2. Nf3 e6 3. d4 cxd4 4. Nxd4 a6 5. c4 Nf6 6. Qd3 Qc7 7. Be2 Nc6 8. Nxc6 dxc6 9. Nc3 Be7 10. Be3 O-O 11. O-O e5 12. f3 Be6 13. a4 a5 14. b3 Nd7 15. Rac1 Bc5 16. Rfd1 Qb6 17. Kf2 f5 18. exf5 Bxf5 19. Bxc5 Nxc5 20. Qe3 Qa7 21. Na2 Bc2 22. Kf1 Bxd1 23. Rxd1 e4 24. Rb1 exf3 25. Bxf3 Rae8 26. Qd4 b6 27. Nc3 Qe7 28. Qd1 Qe3 29. Qc2 Nd3 30. Qe2 Qxe2+ 31. Nxe2 Ne5 32. Kf2 Re7 33. Rd1 Nxf3 34. gxf3 Rfe8 35. Rd2 Re3 36. Rb2 Rd3 37. Nf4 Rd1 38. Ne2 Red8 39. Ke3 R8d3+ 0-1

[Event "45th FIDE Womens Olympiad 2024"]
[Site "Budapest"]
[Date "2024.09.16"]
[Round "6.117"]
[White "Mendoza, Shania Mae"]
[Black "Cordero, Daniela"]
[Result "1-0"]
[ECO "C02"]
[WhiteElo "2013"]
[BlackElo "2017"]
[Annotator "NA"]
[PlyCount "125"]
[EventDate "2024.09.05"]
[EventType "team-tourn"]
[EventCountry "HUN"]
[SourceTitle "playchess.com"]
[Source "ChessBase"]
[SourceQuality "1"]
[WhiteTeam "Philippines"]
[BlackTeam "Bolivia"]
[WhiteTeamCountry "PHI"]
[BlackTeamCountry "BOL"]
[TimeControl "40/5400+30:1800+30"]

1. e4 e6 2. d4 d5 3. e5 c5 4. c3 Nc6 5. Nf3 Nge7 6. Bd3 cxd4 7. cxd4 Nf5 8. O-O Be7 9. Nc3 a6 10. Re1 g5 11. Be3 h5 12. Ne2 Nb4 13. Bb1 Bd7 14. a3 Nc6 15. b4 Rc8 16. Ra2 Na7 17. Bd3 Nb5 18. Qb3 g4 19. Nd2 Nxe3 20. fxe3 Bg5 21. Nf1 g3 22. Nexg3 Rc3 23. Qd1 h4 24. Nh1 Nxa3 25. Nf2 Qb6 26. Rb2 Nc4 27. Bxc4 Rxc4 28. Nd3 Be7 29. Qd2 Rg8 30. h3 Bb5 31. Nf4 Kd7 32. Nh2 Ba4 33. Nd3 Bb5 34. Ng4 Qd8 35. Qf2 Kc7 36. Qxf7 Rf8 37. Qg6 Rg8 38. Qxe6 Rc6 39. Nf4 Bc4 40. Qf5 Kb8 41. Qb1 Rb6 42. Nh5 Qc8 43. Nhf6 Rg7 44. Rc1 Bxf6 45. exf6 Rxg4 46. hxg4 Rxf6 47. Qh7 Qe6 48. Re1 Ka7 49. Qxh4 Rh6 50. Qg5 Rg6 51. Qf5 Qg8 52. Rf2 Rxg4 53. Rc1 Rg5 54. Qf6 Rg6 55. Qe7 Rg7 56. Qd6 Qe8 57. Qc5+ b6 58. Qf8 Qd7 59. e4 dxe4 60. Rxc4 e3 61. Re2 Qg4 62. Rc8 b5 63. Qc5+ 1-0

[Event "45th FIDE Womens Olympiad 2024"]
[Site "Budapest"]
[Date "2024.09.16"]
[Round "6.118"]
[White "Monroy G., Nataly A."]
[Black "Frayna, Janelle Mae"]
[Result "0-1"]
[ECO "D85"]
[WhiteElo "1939"]
[BlackElo "2216"]
[Annotator "TA"]
[PlyCount "72"]
[EventDate "2024.09.05"]
[EventType "team-tourn"]
[EventCountry "HUN"]
[SourceTitle "playchess.com"]
[Source "ChessBase"]
[SourceQuality "1"]
[WhiteTeam "Bolivia"]
[BlackTeam "Philippines"]
[WhiteTeamCountry "BOL"]
[BlackTeamCountry "PHI"]
[TimeControl "40/5400+30:1800+30"]

{[%evp 15,72,14,20,-31,-29,-23,-14,-22,0,0,-1,-6,-21,-43,-25,-43,-16,-22,-12,-25,-19,-35,-50,-43,-49,-41,-55,-42,-31,-56,-50,-90,-84,-300,-300,-322,-299,-412,-405,-399,-405,-407,-419,-436,-399,-470,-453,-483,-395,-532,-527,-528,-518,-515,-522,-587,-540,-29984,-29983]} 1. d4 Nf6 2. Nf3 g6 3. c4 Bg7 4. Nc3 d5 5. cxd5 Nxd5 6. e4 Nxc3 7. bxc3 c5 8. Be3 Qa5 9. Qd3 ({Better is} 9. Qd2 $11) 9... O-O $15 10. Be2 cxd4 11. Nxd4 {The position is equal.} Nc6 12. O-O Ne5 13. Qc2 Ng4 14. Bxg4 Bxg4 15. Rab1 Rab8 16. c4 Rfc8 17. Nb3 Qa4 18. Rfc1 b6 19. h3 Be6 {This pair of bishops is nice.} 20. Nd2 Qa6 21. Rb4 Rc6 22. Ra4 Qb7 23. Ra3 Rbc8 24. Qd3 $2 {This costs White the game.} (24. f4 $17) 24... Bb2 $1 $19 {[%csl LRa3,LRc1]} 25. Rac3 Qc7 {[%cal Oe6c4]} 26. g3 Bxc1 27. Rxc1 Bxc4 28. Nxc4 Rxc4 29. Rd1 Rc3 30. Qd4 Qc4 31. Qe5 {[#] Hoping for Bh6.} Qe6 ({Worse is} 31... Qxa2 32. Bh6 f6 33. Qxe7 R3c7 34. Rd7 (34. Qxf6 Re8 $17) (34. Rd8+ Rxd8 35. Qxc7 Qa1+ 36. Kh2 f5 37. Qxd8+ Kf7 38. Qd7+ Kf6 39. Bg7+ Kg5 40. Qd2+ f4 41. Qd5+ Qe5 42. Qxe5#) 34... Rxd7 35. Qxd7) 32. Qd4 R3c4 33. Qd2 Rc2 34. Qd4 Qxh3 35. Qa4 Qh5 36. Rd5 {[#]} Rc1+ $1 {Weighted Error Value: White=0.57/Black=0.14 (very precise) .  Loses game:     	White=1     	---        Inaccurate:     	White=4     	Black=1      OK:         	White=4     	Black=11     Best:        	White=1     	Black=1      Brilliant:      	---       	Black=1} 0-1

[Event "45th FIDE Womens Olympiad 2024"]
[Site "Budapest"]
[Date "2024.09.16"]
[Round "6.119"]
[White "Fronda, Jan Jodilyn"]
[Black "Yepez Montenegro, Gloria Luz"]
[Result "1-0"]
[ECO "C03"]
[WhiteElo "2165"]
[BlackElo "1818"]
[Annotator "TA"]
[PlyCount "95"]
[EventDate "2024.09.05"]
[EventType "team-tourn"]
[EventCountry "HUN"]
[SourceTitle "playchess.com"]
[Source "ChessBase"]
[SourceQuality "1"]
[WhiteTeam "Philippines"]
[BlackTeam "Bolivia"]
[WhiteTeamCountry "PHI"]
[BlackTeamCountry "BOL"]
[TimeControl "40/5400+30:1800+30"]

{[%evp 9,95,68,60,58,67,60,65,58,87,79,129,123,125,120,306,299,319,317,526,519,742,712,925,925,918,810,911,906,884,871,919,855,1603,915,911,879,1369,496,511,487,507,503,470,429,465,460,452,468,502,476,505,478,477,455,508,458,506,512,528,518,555,554,791,778,1036,1036,992,984,952,800,1435,1443,5531,5427,29971,29973,29972,29977,29977,29978,29977,29978,29988,29989,29989,29990,29992,29993]} 1. e4 e6 2. d4 d5 3. Nd2 h6 4. Bd3 Nf6 5. e5 Nfd7 6. Ne2 c5 7. c3 Nc6 8. O-O {White is slightly better.} Qb6 {[%cal Rc5d4]} 9. Nf3 g5 (9... Be7 $142) 10. h3 $16 Be7 11. a3 h5 $2 (11... c4 $16) 12. Bxg5 $18 Bxg5 13. Nxg5 Rf8 $2 (13... h4 {keeps fighting.} 14. Qd2 Qd8) 14. Nf4 Ndxe5 15. dxe5 Nxe5 16. Re1 Qd6 17. Bb5+ Kd8 {[%cal Be8d8,Bd8e7,Be7f7,Bf7f6][%mdl 32]} 18. Qxh5 f6 {[#]} 19. Rxe5 $1 fxe5 (19... Qxe5 20. Qh6) 20. Ng6 {[%cal Og5e4] Threatens to win with Ne4!} Bd7 21. Nxf8 Qxf8 22. Nf7+ Ke7 23. Bxd7 (23. Nxe5 $142 {Threatening mate with Qh7+.} Be8 24. Qh7+ Kd6 25. Qxb7 Bxb5 26. Nf7+ Qxf7 27. Qxf7) 23... Qxf7 24. Qxf7+ Kxf7 {[%mdl 4096] Endgame. KRB-KR} 25. Re1 Kf6 26. Re3 Rd8 27. Rf3+ Ke7 28. Ba4 d4 29. cxd4 exd4 30. Bc2 c4 31. Kf1 b5 {[%cal Bb7b5,Bb5b4,Bb4b3][%mdl 32]} 32. Be4 a5 33. Ke2 Rb8 34. g4 b4 35. a4 b3 36. g5 Rg8 37. h4 {[%cal Bh3h4,Bh4h5,Bh5h6,Bh6h7][%mdl 32]} Kd6 38. Rg3 Ke5 39. Bb1 Kf4 40. g6 {[#] Hoping for Kd2.} e5 {[%cal Be6e5,Be5e4][%mdl 32]} 41. h5 {White threatens h6 and mate.} e4 42. h6 {White mates.} d3+ 43. Kd2 e3+ 44. fxe3+ Kxg3 45. h7 Rf8 46. g7 Rf2+ 47. Kc3 d2 48. g8=Q+ {Black did not feel at home in the position after the opening.   Weighted Error Value: White=0.38/Black=0.49.  Loses game:     	---       	Black=1      Mistake:       	---       	Black=2      Inaccurate:     	---       	Black=4      OK:         	White=15    	Black=3      Best:        	White=1     	---} (48. g8=B $2 {perishes.} d1=Q (48... d1=B $2 {loses.} 49. h8=Q $18) 49. Kxc4 Rh2 $19 (49... Qxb1 $2 50. h8=Q $19)) 1-0

[Event "45th FIDE Womens Olympiad 2024"]
[Site "Budapest"]
[Date "2024.09.16"]
[Round "6.120"]
[White "Molina, Jessica"]
[Black "Galas, Bernadette"]
[Result "1-0"]
[ECO "D36"]
[WhiteElo "1945"]
[BlackElo "2013"]
[Annotator "NA"]
[PlyCount "75"]
[EventDate "2024.09.05"]
[EventType "team-tourn"]
[EventCountry "HUN"]
[SourceTitle "playchess.com"]
[Source "ChessBase"]
[SourceQuality "1"]
[WhiteTeam "Bolivia"]
[BlackTeam "Philippines"]
[WhiteTeamCountry "BOL"]
[BlackTeamCountry "PHI"]
[TimeControl "40/5400+30:1800+30"]

1. d4 d5 2. c4 e6 3. Nc3 Nf6 4. Bg5 Be7 5. e3 c6 6. cxd5 exd5 7. Bd3 Nbd7 8. Qc2 O-O 9. Nge2 Re8 10. O-O Ne4 11. Bf4 Nxc3 12. Bxh7+ Kh8 13. Nxc3 g6 14. Bxg6 fxg6 15. Nxd5 Nf8 16. Be5+ Kh7 17. Nc7 Be6 18. f4 Bd6 19. Nxe8 Bxe5 20. dxe5 Qxe8 21. e4 Bf7 22. Rf3 Ne6 23. Qf2 Qe7 24. Rh3+ Kg8 25. Kh1 Nc5 26. Qc2 Rd8 27. Rf1 Rd4 28. Qc3 Rc4 29. Qe3 Rxe4 30. Qa3 b6 31. b4 Ne6 32. f5 gxf5 33. Qc1 Bg6 34. Qxc6 Kf7 35. Qxe4 Ng5 36. Rxf5+ Bxf5 37. Qxf5+ Kg7 38. Rg3 1-0

[Event "45th FIDE Womens Olympiad 2024"]
[Site "Budapest"]
[Date "2024.09.16"]
[Round "6.121"]
[White "Antonova, Nadezhda"]
[Black "Keinanen, Anastasia"]
[Result "1/2-1/2"]
[ECO "D02"]
[WhiteElo "1967"]
[BlackElo "2212"]
[Annotator "TA"]
[PlyCount "82"]
[EventDate "2024.09.05"]
[EventType "team-tourn"]
[EventCountry "HUN"]
[SourceTitle "playchess.com"]
[Source "ChessBase"]
[SourceQuality "1"]
[WhiteTeam "Tajikistan"]
[BlackTeam "Finland"]
[WhiteTeamCountry "TJK"]
[BlackTeamCountry "FIN"]
[TimeControl "40/5400+30:1800+30"]

{[%evp 9,82,-4,10,12,31,12,17,10,23,2,13,0,0,0,0,-2,10,9,9,18,18,12,8,8,13,13,19,0,11,21,22,15,0,-32,-12,-16,0,0,6,0,0,-3,-3,-3,-3,-3,-3,-3,-3,-3,-3,-3,-3,-3,-3,-3,0,-3,-3,-3,-3,-3,-3,-3,-3,-49,-3,-3,0,0,0,-15,0,-13,0]} 1. Nf3 d5 2. d4 Nf6 3. Bf4 c5 4. e3 Nc6 5. Nbd2 cxd4 6. exd4 Bf5 7. c3 e6 8. Qb3 Qc8 9. Be2 h6 10. h3 Be7 11. O-O O-O 12. a4 Rd8 13. Rfe1 Ne4 14. Nxe4 Bxe4 15. Ne5 Bd6 16. Nxc6 bxc6 17. Bxd6 Rxd6 18. Qa3 Qc7 19. a5 Re8 20. f3 Bf5 21. f4 Be4 22. b4 Rb8 23. Qc1 Rd7 {[%cal Og7g5]} 24. Qe3 f5 {[%cal Og7g5]} 25. Rf1 {[#]} g5 $1 26. g3 (26. Kh2 Rg7) 26... Rg7 27. Kh2 Kh8 28. Rf2 Rbg8 {...gxf4 would now be deadly.} 29. Rg1 Qe7 30. Rff1 Rh7 31. Rf2 Qf6 32. Rff1 Qg6 33. Bd3 Rf7 34. Be2 Rgg7 35. Qd2 Kg8 36. Qd1 {And now Bh5 would win.} Qf6 37. Qa4 (37. Qd2 $11) 37... Rc7 (37... gxf4 $15 38. Rxf4 e5 39. dxe5 Qxe5) 38. Qd1 $11 {The position is equal.} Rh7 39. Qd2 Rcg7 40. a6 Kh8 41. Qe3 Rg8 {An interesting draw.   Weighted Error Value: White=0.05 (flawless) /Black=0.05 (flawless) .  Mistake:       	White=1     	Black=1      Inaccurate:     	White=1     	---        OK:         	White=10    	Black=13     Best:        	White=2     	---} 1/2-1/2

[Event "45th FIDE Womens Olympiad 2024"]
[Site "Budapest"]
[Date "2024.09.16"]
[Round "6.122"]
[White "Paasikangas, Johanna"]
[Black "Saidova, Rukhshona"]
[Result "0-1"]
[ECO "D37"]
[WhiteElo "2058"]
[BlackElo "1873"]
[Annotator "ChessBase"]
[PlyCount "156"]
[EventDate "2024.09.05"]
[EventType "team-tourn"]
[EventCountry "HUN"]
[SourceTitle "playchess.com"]
[Source "ChessBase"]
[SourceQuality "1"]
[WhiteTeam "Finland"]
[BlackTeam "Tajikistan"]
[WhiteTeamCountry "FIN"]
[BlackTeamCountry "TJK"]
[TimeControl "40/5400+30:1800+30"]

1. d4 d5 2. c4 e6 3. Nf3 Nf6 4. Nc3 Be7 5. e3 O-O 6. Be2 Nbd7 7. O-O dxc4 8. Bxc4 c5 9. a3 a6 10. a4 b6 11. Qe2 Bb7 12. Rd1 Qc7 13. b3 cxd4 14. exd4 Bb4 15. Na2 Bd6 16. h3 Rfe8 17. Bb2 e5 18. d5 Nc5 19. Rac1 Qe7 20. Nc3 e4 21. Nd4 Qe5 22. g3 Qg5 23. Kg2 e3 24. Nf3 Qh6 25. Nh4 Bc8 26. Qf3 exf2 27. Nf5 Bxf5 28. Qxf5 Re3 29. Ne2 Rae8 30. Bxf6 gxf6 31. Rc2 Kh8 32. Rd4 Ne4 33. Rxe4 R3xe4 34. Qxf2 Rg8 35. Rc3 Rh4 36. Qf5 Rh5 37. Qd7 Be5 38. Rf3 Qg7 39. d6 Rg5 40. Qxf7 Qxf7 41. Bxf7 Rd8 42. h4 Rg7 43. Bc4 a5 44. Nc1 Bxd6 45. Nd3 Bc7 46. Kh3 Rgd7 47. Nf2 Kg7 48. Ne4 Be5 49. Nf2 Re7 50. Nd3 Bc7 51. Nf4 Bxf4 52. Rxf4 h5 53. Kg2 Re5 54. Rf3 Rd2+ 55. Kf1 f5 56. Rc3 Kf6 57. Rf3 Rd4 58. Kg2 Re1 59. Bd3 Rd5 60. Kf2 Re7 61. Kf1 Red7 62. Ke2 Re5+ 63. Kf1 Rd8 64. Kf2 Rf8 65. Rf4 Ke7 66. Rc4 Rd8 67. Rc3 Rd4 68. Kf3 Rc5 69. Bc4 Kd6 70. Ke3 Ke5 71. Kf3 f4 72. g4 hxg4+ 73. Kxg4 Rc7 74. Rh3 Ke4 75. h5 Rg7+ 76. Kh4 f3 77. h6 Kf5+ 78. Kh5 Rg5# 0-1

[Event "45th FIDE Womens Olympiad 2024"]
[Site "Budapest"]
[Date "2024.09.16"]
[Round "6.123"]
[White "Tolibova, Dilola"]
[Black "Puuska, Heini"]
[Result "1/2-1/2"]
[ECO "B34"]
[WhiteElo "1831"]
[BlackElo "1930"]
[Annotator "NA"]
[PlyCount "80"]
[EventDate "2024.09.05"]
[EventType "team-tourn"]
[EventCountry "HUN"]
[SourceTitle "playchess.com"]
[Source "ChessBase"]
[SourceQuality "1"]
[WhiteTeam "Tajikistan"]
[BlackTeam "Finland"]
[WhiteTeamCountry "TJK"]
[BlackTeamCountry "FIN"]
[TimeControl "40/5400+30:1800+30"]

1. e4 c5 2. Nf3 Nc6 3. d4 cxd4 4. Nxd4 g6 5. Nc3 Bg7 6. Nb3 Nf6 7. Bd3 d5 8. f3 dxe4 9. Nxe4 Nxe4 10. fxe4 O-O 11. c3 Ne5 12. Be2 Qxd1+ 13. Kxd1 Rd8+ 14. Kc2 f5 15. Bf3 Nxf3 16. gxf3 b6 17. Bg5 Kf7 18. Rae1 h6 19. Bd2 e5 20. a4 a5 21. Be3 Rb8 22. c4 Be6 23. Nd2 Bf8 24. b3 f4 25. Bf2 Rd6 26. Nb1 Rbd8 27. Rd1 Be7 28. Rxd6 Rxd6 29. Rd1 Rxd1 30. Kxd1 Bc5 31. Bxc5 bxc5 32. Nc3 g5 33. Ke2 g4 34. Kf2 h5 35. Nb5 Ke7 36. Nc7 gxf3 37. h4 Bf7 38. Nd5+ Kd6 39. Nc3 Be6 40. Nb1 Bg4 1/2-1/2

[Event "45th FIDE Womens Olympiad 2024"]
[Site "Budapest"]
[Date "2024.09.16"]
[Round "6.124"]
[White "Sippola, Sara-Olivia"]
[Black "Mashabova, Shukrona"]
[Result "1/2-1/2"]
[ECO "C65"]
[WhiteElo "1861"]
[BlackElo "1711"]
[Annotator "NA"]
[PlyCount "155"]
[EventDate "2024.09.05"]
[EventType "team-tourn"]
[EventCountry "HUN"]
[SourceTitle "playchess.com"]
[Source "ChessBase"]
[SourceQuality "1"]
[WhiteTeam "Finland"]
[BlackTeam "Tajikistan"]
[WhiteTeamCountry "FIN"]
[BlackTeamCountry "TJK"]
[TimeControl "40/5400+30:1800+30"]

1. e4 e5 2. Nf3 Nc6 3. Bb5 Bc5 4. O-O Nf6 5. c3 O-O 6. d4 exd4 7. cxd4 Be7 8. Nc3 a6 9. Bd3 d6 10. h3 h6 11. Re1 Re8 12. Bf4 Nh7 13. Qd2 Ng5 14. Be2 Nxf3+ 15. Bxf3 Bf6 16. Be3 Ne7 17. Rac1 Be6 18. Red1 Rb8 19. Be2 Nc8 20. Bd3 Nb6 21. d5 Bc8 22. f4 Nd7 23. Ne2 b6 24. b4 Bb7 25. Rc2 Rc8 26. Rdc1 Nb8 27. Ng3 c5 28. bxc5 bxc5 29. Nf5 Rc7 30. Kh1 Bc8 31. Nxd6 Qxd6 32. e5 Qd8 33. exf6 Qxf6 34. Bxc5 Bb7 35. Be2 Rd7 36. Bf3 Qd8 37. Rd1 Bc6 38. Bg1 Ba4 39. Rdc1 Bxc2 40. Qxc2 Rxd5 41. Bxd5 Qxd5 42. Rd1 Qe6 43. Rc1 Nd7 44. Qa4 Nf6 45. Qc4 Nh5 46. Qxe6 Rxe6 47. Rc4 Re4 48. Rxe4 Ng3+ 49. Kh2 Nxe4 50. Bd4 f5 51. g3 Kf7 52. Kg2 h5 53. Kf3 g6 54. g4 hxg4+ 55. hxg4 Ke6 56. gxf5+ gxf5 57. Ke3 Kd5 58. Kd3 Nd6 59. Be5 Nc4 60. Bd4 Na5 61. Be5 Nc6 62. Bc3 Kc5 63. Bd2 a5 64. Kc3 Nb4 65. Kb3 Nd5 66. Ka4 Nb6+ 67. Kb3 a4+ 68. Kc3 Nd5+ 69. Kb2 Kb5 70. a3 Kc4 71. Kc2 Kd4 72. Bc1 Ke4 73. Bd2 Nxf4 74. Kc3 Nd5+ 75. Kc4 f4 76. Bxf4 Nxf4 77. Kb4 Kd5 78. Kxa4 1/2-1/2

[Event "45th FIDE Womens Olympiad 2024"]
[Site "Budapest"]
[Date "2024.09.16"]
[Round "6.125"]
[White "Sanudula, K M Dahamdi"]
[Black "Wafa, Shrook"]
[Result "1-0"]
[ECO "D02"]
[WhiteElo "2023"]
[BlackElo "2137"]
[Annotator "NA"]
[PlyCount "73"]
[EventDate "2024.09.05"]
[EventType "team-tourn"]
[EventCountry "HUN"]
[SourceTitle "playchess.com"]
[Source "ChessBase"]
[SourceQuality "1"]
[WhiteTeam "Sri Lanka"]
[BlackTeam "Egypt"]
[WhiteTeamCountry "SRI"]
[BlackTeamCountry "EGY"]
[TimeControl "40/5400+30:1800+30"]

1. d4 d5 2. Nf3 Nf6 3. c3 c5 4. dxc5 e6 5. b4 a5 6. Qb3 b6 7. cxb6 axb4 8. cxb4 Qxb6 9. b5 Bc5 10. e3 O-O 11. Be2 Nc6 12. O-O Na5 13. Qd1 Ne4 14. Bb2 Nc4 15. Bxc4 dxc4 16. Qc2 Nxf2 17. Rxf2 Bxe3 18. Nc3 Bb7 19. a4 Bxf3 20. gxf3 Rfd8 21. Nd1 Bxf2+ 22. Nxf2 Rd5 23. Kh1 Rc8 24. Rg1 c3 25. Bxc3 Qe3 26. Rxg7+ Kf8 27. Qxh7 Qxf3+ 28. Kg1 Rc4 29. Rg3 Rd1+ 30. Nxd1 Qxd1+ 31. Kf2 Rf4+ 32. Ke3 Qc1+ 33. Bd2 Qc5+ 34. Kxf4 Qd4+ 35. Kf3 Qxa4 36. Rg8+ Ke7 37. Bg5+ 1-0

[Event "45th FIDE Womens Olympiad 2024"]
[Site "Budapest"]
[Date "2024.09.16"]
[Round "6.126"]
[White "Wafa, Shahenda"]
[Black "Tharushi, T H D Niklesha"]
[Result "1/2-1/2"]
[ECO "B45"]
[WhiteElo "2102"]
[BlackElo "1852"]
[Annotator "NA"]
[PlyCount "71"]
[EventDate "2024.09.05"]
[EventType "team-tourn"]
[EventCountry "HUN"]
[SourceTitle "playchess.com"]
[Source "ChessBase"]
[SourceQuality "1"]
[WhiteTeam "Egypt"]
[BlackTeam "Sri Lanka"]
[WhiteTeamCountry "EGY"]
[BlackTeamCountry "SRI"]
[TimeControl "40/5400+30:1800+30"]

1. e4 c5 2. Nf3 e6 3. d4 cxd4 4. Nxd4 Nf6 5. Nc3 Nc6 6. Ndb5 Bb4 7. a3 Bxc3+ 8. Nxc3 d5 9. exd5 exd5 10. Bd3 O-O 11. O-O Bg4 12. f3 Bh5 13. Bg5 Qb6+ 14. Kh1 Ne4 15. Nxe4 dxe4 16. Bxe4 Qxb2 17. Qb1 Qb6 18. Qxb6 axb6 19. Rfb1 Bg6 20. Bxg6 hxg6 21. Rxb6 f6 22. Bf4 g5 23. Bg3 Rfd8 24. Rxb7 Ra6 25. Rab1 Rxa3 26. Rc1 Ra2 27. h4 gxh4 28. Bxh4 Rd2 29. Rc7 Rdxc2 30. Rxc6 Rxg2 31. R6c4 Rh2+ 32. Kg1 Rhg2+ 33. Kf1 Rh2 34. Kg1 Rhg2+ 35. Kf1 Rh2 36. Kg1 1/2-1/2

[Event "45th FIDE Womens Olympiad 2024"]
[Site "Budapest"]
[Date "2024.09.16"]
[Round "6.127"]
[White "Pallie, Ehsha Mishela"]
[Black "Romany, Joy"]
[Result "1-0"]
[ECO "B40"]
[WhiteElo "1767"]
[BlackElo "2012"]
[Annotator "NA"]
[PlyCount "81"]
[EventDate "2024.09.05"]
[EventType "team-tourn"]
[EventCountry "HUN"]
[SourceTitle "playchess.com"]
[Source "ChessBase"]
[SourceQuality "1"]
[WhiteTeam "Sri Lanka"]
[BlackTeam "Egypt"]
[WhiteTeamCountry "SRI"]
[BlackTeamCountry "EGY"]
[TimeControl "40/5400+30:1800+30"]

1. e4 c5 2. Nf3 e6 3. b3 b6 4. c4 Bb7 5. Nc3 d6 6. Bb2 Nf6 7. d3 Be7 8. g3 O-O 9. Bg2 Nc6 10. O-O Ne5 11. d4 Nxf3+ 12. Bxf3 cxd4 13. Qxd4 Qc7 14. Rfd1 Rfd8 15. Ba3 Ne8 16. Nb5 Qc6 17. Rac1 a6 18. Nc3 Bg5 19. Rc2 b5 20. h4 Bf6 21. Qd3 bxc4 22. bxc4 Rac8 23. Ne2 Qa4 24. Qb3 Bc6 25. Rcd2 Rb8 26. Qe3 Qxc4 27. Rc1 Qa4 28. Rxc6 Qxc6 29. e5 d5 30. exf6 Nxf6 31. Be7 Rb1+ 32. Kg2 Rdb8 33. Bxf6 gxf6 34. Qh6 R8b2 35. Be4 f5 36. Bxb1 Rxb1 37. Qg5+ Kf8 38. Qd8+ Kg7 39. Nf4 d4+ 40. f3 e5 41. Nh5+ 1-0

[Event "45th FIDE Womens Olympiad 2024"]
[Site "Budapest"]
[Date "2024.09.16"]
[Round "6.128"]
[White "Allam, Yara"]
[Black "Gunawardhana, Devindya Oshini"]
[Result "0-1"]
[ECO "C54"]
[WhiteElo "1920"]
[BlackElo "1956"]
[Annotator "NA"]
[PlyCount "54"]
[EventDate "2024.09.05"]
[EventType "team-tourn"]
[EventCountry "HUN"]
[SourceTitle "playchess.com"]
[Source "ChessBase"]
[SourceQuality "1"]
[WhiteTeam "Egypt"]
[BlackTeam "Sri Lanka"]
[WhiteTeamCountry "EGY"]
[BlackTeamCountry "SRI"]
[TimeControl "40/5400+30:1800+30"]

1. e4 e5 2. Nf3 Nc6 3. Bc4 Nf6 4. d3 Bc5 5. c3 d6 6. Nbd2 a6 7. Bb3 h6 8. h3 Ba7 9. Nf1 O-O 10. Ng3 Be6 11. Bxe6 fxe6 12. d4 exd4 13. cxd4 d5 14. exd5 Qxd5 15. Ne2 Rad8 16. O-O e5 17. Qc2 exd4 18. Nf4 Qf7 19. Nd3 Nd5 20. a3 Qg6 21. Qd1 Ne3 22. Bxe3 dxe3 23. Qb3+ Kh7 24. Nde5 Nxe5 25. Nxe5 exf2+ 26. Kh1 Qe4 27. Ng4 Rd3 0-1